bitfinex/quotes_ETHUSD_20250623
["timestamp","ask_amount","ask_price","bid_price","bid_amount"]
[1750708367862,2.01,2311.7,2311.5,4.32608119]
[1750708368218,2.01,2311.7,2311.0,17.367]
[1750708368418,2.01,2311.7,2311.2,4.32675666]
[1750708368618,2.01,2311.7,2311.5,4.32605569]
[1750708369050,0.8018,2311.8,2311.5,4.32619511]
[1750708369051,2.01,2311.6,2311.5,4.32619511]
[1750708369750,0.04,2311.9,2311.4,4.32633226]
[1750708369928,2.01,2311.7,2311.6,4.32600795]
[1750708377261,0.04,2311.9,2311.3,12.44356169]
[1750708377262,2.05,2311.9,2311.8,4.3256337]
[1750708377433,2.05,2311.9,2311.3,12.44338947]
[1750708377757,2.05,2311.9,2311.6,4.32591223]
[1750708378139,2.05,2311.9,2311.6,4.32589277]
[1750708378336,2.05,2311.9,2311.8,4.3256337]
[1750708379858,2.05,2311.9,2311.7,4.32572398]
[1750708380235,0.04,2311.9,2311.8,4.3256337]
[1750708380436,0.04,2311.9,2311.8,5.1230337]
[1750708380776,0.04,2311.9,2311.8,15.1230337]
[1750708380978,0.2248756,2312.3,2311.8,15.1230337]
[1750708380979,0.2248756,2312.3,2312.2,9.69528539]
[1750708381138,0.2248756,2312.3,2312.2,12.49928539]
[1750708381896,0.2248756,2312.3,2311.6,3.93256276]
[1750708381897,0.2248756,2312.3,2311.8,4.32554106]
[1750708382187,3.382,2312.2,2311.7,4.32564716]
[1750708382473,3.382,2312.2,2311.2,5.14715666]
[1750708382675,0.2248756,2312.3,2311.2,8.1844]
[1750708382856,0.2248756,2312.3,2312.2,15.14528539]
[1750708383057,0.2248756,2312.3,2312.2,21.68788539]
[1750708383369,0.2248756,2312.3,2312.2,11.68788539]
[1750708383574,0.2248756,2312.3,2312.2,4.32488539]
[1750708384442,0.2248756,2312.3,2312.2,12.46358539]
[1750708384770,0.2248756,2312.3,2312.2,11.68788539]
[1750708385773,0.2248756,2312.3,2312.2,21.68788539]
[1750708386070,0.2248756,2312.3,2312.2,27.02358539]
[1750708386274,0.2248756,2312.3,2312.2,22.46358539]
[1750708387866,0.2248756,2312.3,2312.2,27.02358539]
[1750708388636,0.2248756,2312.3,2312.2,22.46358539]
[1750708389253,0.2248756,2312.3,2312.2,24.46958539]
[1750708389507,0.04,2312.9,2312.8,5.1219634]
[1750708389671,0.04,2312.9,2312.8,34.34044156]
[1750708389839,2.814,2314.0,2312.8,34.34044156]
[1750708389840,0.808,2314.0,2313.8,4.32189471]
[1750708390542,0.7761,2314.2,2313.8,4.32189471]
[1750708391679,2.8094,2314.5,2313.8,4.32189471]
[1750708391886,0.8034,2314.5,2313.8,15.12179471]
[1750708392443,2.2298756,2314.6,2313.8,15.12179471]
[1750708394073,0.2248756,2314.6,2314.5,4.32058759]
[1750708395398,0.2248756,2314.6,2314.0,0.7749]
[1750708395594,0.7763,2314.5,2314.4,4.32077428]
[1750708395799,0.2248756,2314.6,2314.5,4.32058759]
[1750708396002,0.2248756,2314.6,2314.5,11.67858759]
[1750708396563,0.2248756,2314.6,2314.5,34.32276575]
[1750708396760,0.2248756,2314.6,2314.5,22.46528759]
[1750708397163,0.2248756,2314.6,2314.5,34.32276575]
[1750708397483,0.0086756,2314.6,2314.5,22.47628759]
[1750708398007,0.0086756,2314.6,2314.4,4.320683]
[1750708398164,0.0086756,2314.6,2314.5,4.32058759]
[1750708398667,0.0086756,2314.6,2314.5,11.70058759]
[1750708399093,0.0086756,2314.6,2314.5,4.32058759]
[1750708399399,0.28662316,2314.6,2314.3,4.32087824]
[1750708399904,0.28662316,2314.6,2313.3,4.32281812]
[1750708399905,0.7952,2314.4,2313.3,4.32281812]
[1750708400081,0.55,2314.1,2313.6,4.32213418]
[1750708400401,0.7952,2314.2,2314.1,4.32133442]
[1750708400598,2.004,2314.4,2314.2,4.32114769]
[1750708400899,2.004,2314.4,2314.3,4.32096098]
[1750708401401,2.004,2314.4,2314.1,11.71424557]
[1750708401560,0.8038756,2314.6,2314.1,7.393]
[1750708401763,2.8078756,2314.6,2314.4,4.3206752]
[1750708401963,2.8078756,2314.6,2314.3,4.32089428]
[1750708402164,2.8078756,2314.6,2314.4,4.32074485]
[1750708402364,0.8038756,2314.6,2314.5,4.32058759]
[1750708402566,0.0086756,2314.6,2314.5,4.32058759]
[1750708404006,0.0086756,2314.6,2314.5,5.07518759]
[1750708404168,0.0086756,2314.6,2314.5,4.32058759]
[1750708405304,0.7618756,2314.6,2314.4,4.32076522]
[1750708406105,0.7618756,2314.6,2314.3,4.32086208]
[1750708406304,2.7658756,2314.6,2314.2,11.71604557]
[1750708406488,3.04246316,2314.6,2314.3,4.32095304]
[1750708406692,3.04246316,2314.6,2313.8,5.18791282]
[1750708406693,0.55,2314.5,2314.2,7.39]
[1750708406891,0.79,2314.4,2313.8,0.1116]
[1750708407087,2.004,2314.3,2314.0,4.3214327]
[1750708407605,0.79,2314.4,2314.1,4.32132503]
[1750708407606,2.004,2314.2,2314.1,4.32132503]
[1750708407804,2.004,2314.3,2314.1,0.86429072]
[1750708408004,2.004,2314.3,2314.2,4.32114769]
[1750708408435,0.79,2314.4,2314.3,4.32096098]
[1750708408580,0.79,2314.4,2313.8,0.1116]
[1750708408786,2.794,2314.4,2314.2,4.32101586]
[1750708408985,0.0086756,2314.6,2314.3,4.32096098]
[1750708409178,0.0086756,2314.6,2314.4,4.3206821]
[1750708409385,2.004,2314.5,2314.3,4.32087665]
[1750708410021,2.004,2314.5,2314.4,4.32077428]
[1750708410317,2.0126756,2314.6,2314.2,4.32098869]
[1750708410528,2.0126756,2314.6,2314.3,4.32088097]
[1750708410529,2.34901316,2314.6,2314.3,4.32088097]
[1750708410722,2.0126756,2314.6,2314.4,4.32074657]
[1750708410885,2.0126756,2314.6,2314.3,4.32086189]
[1750708411078,0.55,2314.5,2313.9,10.0]
[1750708411282,0.55,2314.5,2313.8,7.5036]
[1750708411283,0.55,2314.3,2313.8,0.1116]
[1750708411509,0.7874,2314.2,2313.9,4.32161969]
[1750708411725,2.025,2314.1,2313.9,0.44332197]
[1750708411921,2.025,2314.1,2313.8,4.43342289]
[1750708412423,0.7874,2314.2,2314.1,4.32133442]
[1750708412723,1.3013,2313.9,2313.8,0.1116]
[1750708416128,2.575,2313.9,2313.8,0.1116]
[1750708417110,2.8325,2313.9,2313.8,0.1116]
[1750708417312,0.2575,2313.9,2313.8,0.1116]
[1750708417512,0.8139,2314.5,2314.0,4.32147348]
[1750708417728,0.0086756,2314.6,2314.4,4.32077428]
[1750708418047,0.0086756,2314.6,2314.5,4.32058759]
[1750708418339,0.0086756,2314.6,2314.4,4.32066496]
[1750708418548,0.5586756,2314.6,2314.4,4.32066496]
[1750708418833,0.5586756,2314.6,2314.4,4.32076273]
[1750708419034,0.5586756,2314.6,2314.1,4.32133442]
[1750708419443,0.5586756,2314.6,2314.4,4.32060201]
[1750708419638,0.5586756,2314.6,2314.5,4.32058759]
[1750708420129,0.5586756,2314.6,2314.3,4.32083889]
[1750708420325,0.0086756,2314.6,2314.4,4.32064203]
[1750708420527,0.0086756,2314.6,2314.5,4.32058759]
[1750708422517,0.0086756,2314.6,2314.4,4.32066612]
[1750708422719,0.5586756,2314.6,2313.9,4.32170793]
[1750708422950,0.5586756,2314.6,2314.3,4.32086135]
[1750708423244,0.0086756,2314.6,2314.5,4.32058759]
[1750708423621,0.0086756,2314.6,2314.3,4.32086743]
[1750708423819,0.5586756,2314.6,2314.3,4.32086743]
[1750708424332,0.5586756,2314.6,2314.2,4.32103427]
[1750708424845,0.5586756,2314.6,2314.0,10.44333079]
[1750708425008,0.5586756,2314.6,2314.4,4.32068569]
[1750708425344,0.0086756,2314.6,2314.4,4.32068569]
[1750708425547,2.025,2314.5,2314.4,4.32068569]
[1750708426721,2.025,2314.5,2314.1,4.32118773]
[1750708426921,2.025,2314.5,2314.2,4.32111947]
[1750708427319,0.0086756,2314.6,2314.4,4.32077428]
[1750708427559,0.0086756,2314.6,2314.5,4.32058759]
[1750708430364,0.04,2314.9,2314.6,10.7819]
[1750708430565,0.771,2316.7,2315.8,5.10006219]
[1750708430735,0.771,2316.7,2315.8,12.57306219]
[1750708431125,0.8255,2316.1,2315.7,4.31824246]
[1750708431324,0.8255,2316.1,2315.8,4.31816219]
[1750708431560,0.8255,2316.1,2315.7,4.31833465]
[1750708431937,0.8255,2316.1,2315.8,4.31816219]
[1750708432341,0.8255,2316.1,2315.3,17.479]
[1750708432554,2.024,2316.3,2315.8,15.09696219]
[1750708432740,0.8255,2316.7,2315.8,15.09696219]
[1750708432953,0.2648756,2316.9,2315.8,21.68096219]
[1750708433123,0.2648756,2316.9,2315.8,29.72196219]
[1750708433348,0.2648756,2316.9,2315.8,29.17196219]
[1750708433547,2.2888756,2316.9,2315.8,15.09696219]
[1750708433762,2.2888756,2316.9,2315.8,22.58996219]
[1750708434065,2.2888756,2316.9,2315.8,22.59196219]
[1750708434264,2.024,2316.8,2315.8,15.09696219]
[1750708434465,2.024,2316.8,2315.8,22.59596219]
[1750708435063,0.2648756,2316.9,2315.8,23.14596219]
[1750708435265,0.2648756,2316.9,2316.8,4.31629834]
[1750708435578,0.2648756,2316.9,2316.8,21.81929834]
[1750708435780,0.2648756,2316.9,2316.8,14.31629834]
[1750708438680,0.04,2317.9,2317.1,0.7591]
[1750708438885,0.04,2317.9,2317.8,4.3144361]
[1750708439201,0.04,2317.9,2317.8,11.8464361]
[1750708440258,0.04,2317.9,2317.8,22.6055361]
[1750708441006,0.04,2317.9,2317.8,22.6045361]
[1750708441159,0.04,2317.9,2317.8,15.0735361]
[1750708441496,0.04,2317.9,2317.8,22.6075361]
[1750708442017,0.04,2318.9,2318.6,0.7591]
[1750708442313,0.04,2318.9,2318.8,4.31257547]
[1750708442512,0.04,2318.9,2318.8,11.86357547]
[1750708443455,0.7974,2318.9,2318.3,7.583]
[1750708443653,2.66,2318.8,2318.3,4.31342043]
[1750708443866,2.66,2318.8,2317.5,0.7772]
[1750708443867,0.55,2318.4,2317.5,0.7772]
[1750708444160,0.7928,2318.5,2318.2,4.31368976]
[1750708444456,0.8328,2318.9,2318.8,4.31257547]
[1750708444686,0.04,2318.9,2318.8,4.31257547]
[1750708444899,0.04,2318.9,2318.8,11.90657547]
[1750708445058,0.04,2318.9,2318.8,22.67347547]
[1750708445264,0.04,2318.9,2318.8,15.07947547]
[1750708445454,0.04,2318.9,2318.8,14.31257547]
[1750708446205,0.04,2318.9,2318.8,4.31257547]
[1750708446365,0.04,2318.9,2318.8,14.31257547]
[1750708446892,0.04,2318.9,2318.8,21.92057547]
[1750708447461,0.04,2318.9,2318.8,4.31257547]
[1750708447661,0.04,2318.9,2318.8,11.92157547]
[1750708447996,0.04,2318.9,2318.8,21.92157547]
[1750708448391,0.04,2318.9,2318.8,34.51944532]
[1750708448960,0.04,2318.9,2318.8,26.91044532]
[1750708449161,0.04,2318.9,2318.8,34.51744532]
[1750708449697,0.04,2318.9,2318.8,26.91044532]
[1750708450098,0.04,2318.9,2318.8,34.52044532]
[1750708450297,0.04,2318.9,2318.8,27.46044532]
[1750708450498,0.04,2318.9,2318.8,37.17944532]
[1750708451202,0.04,2318.9,2318.8,25.34847547]
[1750708451359,0.04,2318.9,2318.8,36.63444532]
[1750708452268,0.04,2318.9,2318.8,26.91044532]
[1750708452600,0.04,2318.9,2318.8,22.68947547]
[1750708452982,0.04,2318.9,2318.8,23.23947547]
[1750708453180,0.04,2318.9,2318.8,27.71799247]
[1750708453379,0.04,2318.9,2318.8,15.62947547]
[1750708453614,0.04,2318.9,2318.8,37.18144532]
[1750708453815,0.04,2318.9,2318.8,27.46044532]
[1750708453991,0.04,2318.9,2318.8,34.52144532]
[1750708454393,0.04,2318.9,2318.8,26.91044532]
[1750708454567,0.04,2318.9,2318.8,22.69247547]
[1750708454768,0.04,2318.9,2318.8,26.91044532]
[1750708454982,0.04,2318.9,2318.8,24.79647547]
[1750708455182,0.04,2318.9,2318.8,24.80047547]
[1750708455363,0.04,2318.9,2318.8,27.46044532]
[1750708455571,0.04,2318.9,2318.8,36.63144532]
[1750708456221,0.04,2318.9,2318.8,45.42486532]
[1750708456423,0.04,2318.9,2318.8,39.18544532]
[1750708456765,0.04,2318.9,2318.8,27.46044532]
[1750708456970,0.04,2318.9,2318.8,37.18344532]
[1750708457225,0.2248756,2319.2,2319.1,4.86201759]
[1750708457527,0.2248756,2319.2,2319.1,35.08348744]
[1750708457727,0.2248756,2319.2,2319.1,37.19048744]
[1750708457926,0.04,2319.9,2319.8,5.08621644]
[1750708458220,0.04,2319.9,2319.8,35.07918629]
[1750708458370,0.8048,2321.3,2320.8,14.30885901]
[1750708458571,0.8048,2321.3,2320.8,21.96085901]
[1750708459411,2.9128,2321.3,2320.8,21.96085901]
[1750708459879,0.8238,2320.8,2320.4,7.648]
[1750708460082,10.2248756,2321.5,2319.5,2.108]
[1750708460083,0.8238,2320.5,2319.8,7.652]
[1750708460391,0.8238,2320.5,2320.2,4.30995229]
[1750708460598,0.8238,2320.5,2320.2,4.30997279]
[1750708460766,2.108,2320.4,2320.2,4.30997279]
[1750708460967,2.108,2320.3,2320.0,7.655]
[1750708461164,0.8218,2320.2,2319.1,4.31200141]
[1750708461369,0.8218,2320.2,2319.7,4.3108582]
[1750708461629,0.8218,2320.2,2319.5,11.96521164]
[1750708461823,0.8218,2320.2,2319.5,11.96518099]
[1750708461969,2.192,2320.1,2319.7,4.31082824]
[1750708462302,0.8218,2320.2,2319.8,7.656]
[1750708462500,0.8218,2320.2,2319.1,0.7775]
[1750708462693,10.0,2320.8,2319.6,4.3110003]
[1750708462694,0.8166,2320.0,2319.6,4.3110003]
[1750708462888,0.55,2320.5,2319.7,11.98683138]
[1750708462889,0.8166,2320.5,2319.7,11.98683138]
[1750708463071,0.8166,2320.5,2319.8,7.676]
[1750708463072,3.0086,2320.5,2319.8,7.676]
[1750708463277,3.0086,2320.5,2320.2,4.30996547]
[1750708463626,0.8166,2320.5,2320.2,4.30990447]
[1750708463976,0.8166,2320.5,2319.6,10.0]
[1750708464184,0.8166,2320.5,2320.1,4.31014806]
[1750708464432,0.8166,2320.5,2319.7,7.678]
[1750708464433,0.8166,2320.5,2320.0,4.31028641]
[1750708464626,0.8166,2320.5,2319.8,4.31057404]
[1750708464851,0.55,2320.4,2319.4,14.31143418]
[1750708464997,0.55,2320.4,2319.1,0.7534]
[1750708464998,0.769,2320.2,2319.1,0.7534]
[1750708465203,0.769,2320.2,2319.8,4.31058178]
[1750708465436,0.55,2320.4,2319.1,5.06539931]
[1750708465437,2.192,2320.1,2319.7,4.31081505]
[1750708465739,0.797,2319.9,2319.7,4.31081505]
[1750708466041,0.797,2319.9,2319.8,4.31071644]
[1750708467041,0.797,2319.9,2319.5,7.675]
[1750708467204,0.797,2319.9,2319.8,4.31071644]
[1750708468047,0.8322,2320.8,2319.8,10.7839]
[1750708468341,0.8322,2320.8,2320.1,4.31015904]
[1750708468529,0.8322,2320.8,2320.5,4.30929204]
[1750708468731,0.8322,2320.8,2320.5,4.30940739]
[1750708468929,0.8322,2320.8,2320.6,4.30922339]
[1750708469133,11.13862,2320.8,2319.9,7.699]
[1750708469441,11.13862,2320.8,2319.5,5.07502255]
[1750708469442,0.8099,2320.5,2319.8,4.31053297]
[1750708469626,0.8099,2320.3,2319.9,4.31051741]
[1750708469830,0.8099,2320.3,2319.8,4.31057914]
[1750708470013,0.8099,2320.3,2319.6,7.703]
[1750708470215,0.8099,2320.3,2320.2,4.30997327]
[1750708470415,0.04,2320.9,2320.4,4.30945029]
[1750708470416,0.8224,2320.7,2320.4,4.30945029]
[1750708470618,0.8224,2320.7,2320.5,4.30941047]
[1750708471231,0.8224,2320.7,2320.1,12.01406965]
[1750708471232,0.8224,2320.7,2320.1,7.704]
[1750708471458,0.04,2320.9,2320.8,14.30885901]
[1750708471627,1.0065756,2321.5,2321.4,4.30774532]
[1750708473141,0.5065756,2321.5,2321.4,4.30774532]
[1750708473939,0.5065756,2321.5,2321.2,4.30796438]
[1750708474141,0.5065756,2321.5,2320.8,7.774]
[1750708474301,0.5065756,2321.5,2321.1,4.30813474]
[1750708474509,0.77643316,2321.5,2321.2,4.30809064]
[1750708474705,0.5065756,2321.5,2321.4,4.30774532]
[1750708475109,2.6975756,2321.5,2320.8,7.778]
[1750708475324,0.5065756,2321.5,2321.4,4.30774532]
[1750708475724,0.5065756,2321.5,2321.3,4.30783409]
[1750708475927,0.5065756,2321.5,2321.4,4.30774532]
[1750708476547,0.5065756,2321.5,2321.0,4.30835488]
[1750708476725,0.5065756,2321.5,2320.9,4.3086354]
[1750708477116,0.5065756,2321.5,2321.0,4.3083615]
[1750708477342,0.5065756,2321.5,2321.1,4.30822241]
[1750708477539,2.191,2321.4,2321.3,4.30790209]
[1750708478131,0.5065756,2321.5,2321.3,4.30790209]
[1750708478417,2.191,2321.4,2321.3,4.30790209]
[1750708478641,2.191,2321.4,2321.1,4.30822388]
[1750708478961,2.191,2321.4,2321.3,4.3079309]
[1750708479252,0.7695,2321.8,2321.7,4.30718869]
[1750708480225,0.04,2321.9,2321.7,4.30718869]
[1750708480438,0.04,2321.9,2321.4,0.76]
[1750708480771,0.04,2321.9,2321.1,0.8144]
[1750708480975,0.7615,2321.8,2321.3,7.755]
[1750708481126,0.7615,2321.8,2321.7,4.30718869]
[1750708481772,0.7615,2321.8,2321.5,4.30750624]
[1750708482067,0.7615,2321.8,2321.6,4.30736037]
[1750708482297,0.7615,2321.8,2321.3,4.30782756]
[1750708482421,1.06075,2321.8,2321.3,4.307817]
[1750708482616,1.06075,2321.8,2321.4,4.30773742]
[1750708482923,1.06075,2321.8,2321.7,4.30718869]
[1750708482924,0.7615,2321.8,2321.7,4.30718869]
[1750708483118,0.04,2321.9,2321.8,4.30700318]
[1750708485546,0.04,2321.9,2321.8,12.05000318]
[1750708485932,0.04,2321.9,2321.8,4.30700318]
[1750708486460,0.04,2321.9,2321.6,7.739]
[1750708486658,2.191,2321.8,2320.8,0.7623]
[1750708486860,1.0534,2321.7,2321.1,4.30821308]
[1750708487058,1.0534,2321.7,2320.7,7.739]
[1750708487059,2.191,2321.6,2321.3,4.307835]
[1750708487462,2.191,2321.6,2321.5,4.30755976]
[1750708487762,0.0432,2321.8,2321.2,5.07139442]
[1750708487935,0.0432,2321.8,2321.2,0.7633]
[1750708488141,0.0432,2321.8,2321.7,4.30718869]
[1750708488339,0.0432,2321.8,2321.2,0.7633]
[1750708488532,0.0432,2321.8,2321.3,12.04292265]
[1750708488732,0.0432,2321.8,2321.7,4.30718869]
[1750708489332,0.0432,2321.8,2321.6,4.30733744]
[1750708489333,0.0432,2321.8,2321.6,4.30728203]
[1750708490029,0.0432,2321.8,2321.5,4.30754306]
[1750708490226,0.0432,2321.8,2320.9,0.7878]
[1750708490431,0.55,2321.3,2319.9,0.7865]
[1750708490631,0.7867,2321.4,2319.6,4.31108811]
[1750708490632,0.7867,2321.0,2319.6,4.31108811]
[1750708490830,0.7902,2320.8,2319.4,12.84980408]
[1750708491067,0.7902,2320.8,2320.2,4.30995035]
[1750708491229,0.35312,2320.7,2319.6,4.31108811]
[1750708491436,0.35312,2320.7,2320.3,4.30969705]
[1750708491862,0.55,2320.6,2319.9,4.31042479]
[1750708492091,0.7902,2320.5,2319.9,4.31040326]
[1750708492265,3.0382,2320.5,2320.1,4.31001472]
[1750708492489,3.377332,2320.5,2319.9,4.31044882]
[1750708492655,0.7813,2320.3,2319.4,4.31145837]
[1750708492853,0.7813,2320.3,2319.8,4.31060588]
[1750708493288,0.7813,2320.3,2319.6,4.31108811]
[1750708493635,2.248,2320.2,2320.1,4.31015904]
[1750708495487,2.248,2320.3,2320.2,4.30997327]
[1750708499602,17.38242,2321.0,2319.8,7.728]
[1750708499603,2.249,2320.5,2319.8,7.728]
[1750708499788,2.249,2320.5,2320.4,4.30960179]
[1750708499984,2.249,2320.5,2320.1,4.31009591]
[1750708500173,2.249,2320.5,2320.0,12.02333356]
[1750708500510,0.55,2320.0,2318.7,0.7825]
[1750708500790,0.8036,2319.7,2319.2,4.31179976]
[1750708501117,0.8036,2319.7,2319.2,4.31175354]
[1750708501321,0.8036,2319.7,2319.1,0.04]
[1750708501462,0.55,2319.6,2319.1,0.04]
[1750708501679,0.55,2319.4,2319.1,0.04]
[1750708501908,2.249,2319.3,2319.1,0.04]
[1750708502060,0.7961,2319.5,2319.1,0.04]
[1750708502409,1.10061,2319.5,2319.1,0.04]
[1750708502767,0.7961,2319.5,2319.2,4.31172424]
[1750708502972,0.7961,2319.5,2319.1,0.04]
[1750708503365,0.7536,2319.3,2319.1,0.04]
[1750708504586,3.0026,2319.3,2319.2,4.31183166]
[1750708504805,0.7536,2319.6,2319.5,4.31113452]
[1750708505103,2.249,2319.7,2319.6,4.31108811]
[1750708506275,2.249,2319.7,2319.1,0.8272]
[1750708506468,0.7536,2319.5,2319.1,0.04]
[1750708506870,3.0026,2319.5,2319.1,0.04]
[1750708507212,8.5006,2319.4,2319.1,0.04]
[1750708507565,0.7536,2319.4,2319.1,0.04]
[1750708507767,2.249,2319.3,2319.1,0.04]
[1750708508578,2.55358,2319.3,2319.1,0.04]
[1750708510412,2.249,2319.3,2319.1,0.04]
[1750708511431,0.0432,2319.4,2319.3,4.31164575]
[1750708511928,0.0432,2319.4,2319.1,0.04]
[1750708512100,0.7718,2319.3,2319.1,0.04]
[1750708513229,13.17396985,2319.2,2319.1,0.04]
[1750708513432,14.49568684,2319.2,2319.1,0.04]
[1750708515306,14.49568684,2319.2,2318.1,4.35387021]
[1750708515307,0.55,2319.0,2318.1,0.04]
[1750708515510,0.7552,2318.5,2318.1,0.04]
[1750708515829,10.01,2318.4,2318.1,0.04]
[1750708516037,2.11252,2318.3,2318.1,0.04]
[1750708516717,13.13616985,2318.2,2318.1,0.04]
[1750708517118,19.27328157,2318.2,2318.1,0.04]
[1750708517320,19.27328157,2318.2,2316.6,4.31666645]
[1750708517321,18.51808157,2318.2,2316.6,4.31666645]
[1750708517632,10.7622,2318.1,2317.0,4.31586376]
[1750708517945,10.7622,2318.1,2317.4,4.31509126]
[1750708517946,2.68993117,2318.0,2317.4,4.31509126]
[1750708518236,2.68993117,2318.0,2317.3,4.31526746]
[1750708518393,2.68993117,2318.0,2317.4,4.3151721]
[1750708518599,2.68993117,2318.0,2317.3,4.31527959]
[1750708518832,1.34521312,2317.9,2317.1,4.79125108]
[1750708519007,1.34521312,2317.9,2317.2,4.31555325]
[1750708519404,0.8248,2317.8,2317.1,4.35566076]
[1750708519633,0.8248,2317.8,2317.2,4.3153864]
[1750708519841,0.8248,2317.8,2317.4,4.31509388]
[1750708520237,0.8248,2317.8,2317.1,0.04]
[1750708520401,0.8248,2318.2,2317.3,0.7854]
[1750708520724,0.8248,2318.2,2317.9,4.31417706]
[1750708521034,0.8248,2318.2,2317.9,4.3142282]
[1750708521342,0.8248,2318.2,2317.6,4.31476423]
[1750708521504,0.8248,2318.2,2317.3,0.7854]
[1750708521505,0.30758,2318.1,2317.3,4.31536702]
[1750708521701,0.8248,2318.2,2317.7,4.31450767]
[1750708522445,0.8248,2318.2,2317.6,4.31470372]
[1750708522750,0.8248,2318.2,2317.5,4.3149482]
[1750708523036,0.8248,2318.2,2317.1,0.04]
[1750708523037,0.55,2317.9,2317.1,4.35564854]
[1750708523214,2.249,2317.8,2317.1,4.35564854]
[1750708523414,1.0552,2317.7,2317.1,0.04]
[1750708523639,0.8333,2318.0,2317.5,4.31488763]
[1750708523854,3.0823,2318.0,2317.5,4.31488763]
[1750708524143,3.0823,2318.0,2317.6,4.31479441]
[1750708524349,3.0823,2318.0,2317.5,4.31489771]
[1750708525743,3.0823,2318.0,2317.6,4.3147104]
[1750708525946,3.39053,2318.0,2317.2,0.796]
[1750708526111,3.39053,2318.0,2317.4,4.31502037]
[1750708526311,3.39053,2318.0,2317.6,4.31468804]
[1750708526511,3.39053,2318.0,2317.6,4.31471953]
[1750708526817,3.39053,2318.0,2317.5,4.31489901]
[1750708527012,3.39053,2318.0,2317.3,4.31532916]
[1750708527232,3.39053,2318.0,2317.4,4.31504284]
[1750708527631,3.39053,2318.0,2317.5,4.31494574]
[1750708527971,3.39053,2318.0,2317.4,4.31507887]
[1750708528121,3.39053,2318.0,2317.5,4.31497998]
[1750708528452,0.339053,2317.9,2317.4,4.31510129]
[1750708528852,0.339053,2317.9,2317.2,4.3154829]
[1750708529061,0.339053,2317.9,2317.3,4.3153634]
[1750708529256,0.339053,2317.9,2317.4,4.31507634]
[1750708529257,0.382253,2317.9,2317.4,4.31507634]
[1750708529618,0.382253,2317.9,2317.5,4.31499393]
[1750708529853,0.382253,2317.9,2317.1,0.04]
[1750708530157,0.382253,2317.9,2317.2,4.31538105]
[1750708530457,0.382253,2317.9,2317.5,4.31499059]
[1750708530654,0.382253,2317.9,2317.3,4.31528018]
[1750708530859,0.382253,2317.9,2317.3,4.31520405]
[1750708531160,0.382253,2317.9,2317.4,4.31516933]
[1750708531365,0.382253,2317.9,2317.3,4.31533557]
[1750708531569,0.382253,2317.9,2317.4,4.31516208]
[1750708531856,0.0432,2317.9,2317.6,4.31473495]
[1750708532557,0.0432,2317.9,2317.7,4.31458951]
[1750708533124,0.0432,2317.9,2317.8,4.3144361]
[1750708535460,0.0432,2317.9,2317.4,7.709]
[1750708535461,0.8023,2317.8,2317.3,4.31535714]
[1750708535661,3.0523,2317.8,2317.4,4.31506715]
[1750708535961,3.0523,2317.8,2317.5,4.31490052]
[1750708536723,2.25,2317.8,2317.7,4.31462225]
[1750708536932,0.0432,2317.9,2317.3,4.31536702]
[1750708537126,0.0432,2317.9,2317.6,4.31471807]
[1750708537331,0.0432,2317.9,2317.8,4.3144361]
[1750708537542,2.25,2318.1,2317.9,4.31410491]
[1750708537763,2.25,2318.1,2317.8,4.31433624]
[1750708538065,2.25,2318.1,2317.9,4.31423386]
[1750708538266,2.25,2318.1,2317.4,12.01417807]
[1750708538434,2.25,2318.1,2317.7,4.31449224]
[1750708538831,2.25,2318.1,2317.4,4.31508128]
[1750708539061,2.25,2318.1,2317.5,4.31487138]
[1750708539466,0.807,2318.2,2317.3,4.31536702]
[1750708539669,10.36,2318.5,2318.1,4.31374637]
[1750708539670,11.1901,2318.5,2318.1,4.31374637]
[1750708539984,14.55911,2318.5,2318.1,4.31384772]
[1750708540468,13.4401,2318.5,2317.9,4.31424996]
[1750708540668,11.1901,2318.5,2317.7,10.0]
[1750708540867,2.25,2318.4,2317.9,4.31412318]
[1750708541072,2.25,2318.4,2317.5,8.4573]
[1750708541274,2.25,2318.4,2317.8,4.31428937]
[1750708541475,2.52710699,2318.3,2317.8,4.31428937]
[1750708541768,2.52710699,2318.3,2317.9,4.31411816]
[1750708542335,2.52710699,2318.3,2317.8,4.31440622]
[1750708542535,2.52710699,2318.3,2317.8,8.62869076]
[1750708542845,2.52710699,2318.3,2317.9,4.31421961]
[1750708543046,0.4777107,2318.2,2317.8,4.31432195]
[1750708543262,2.25,2318.4,2317.6,4.31467571]
[1750708543476,2.25,2318.4,2317.8,4.31433216]
[1750708543773,11.1901,2318.5,2317.8,4.31440938]
[1750708543947,2.25,2318.4,2318.1,4.31378275]
[1750708544141,3.59401,2318.4,2318.2,4.31356753]
[1750708544343,3.59401,2318.4,2318.1,4.31379041]
[1750708544560,3.59401,2318.4,2318.2,4.31368295]
[1750708544779,3.59401,2318.4,2317.9,4.31407006]
[1750708544992,3.59401,2318.4,2318.0,4.31395146]
[1750708545284,1.478411,2318.3,2318.0,4.31395146]
[1750708545481,0.833,2318.2,2317.2,5.13619121]
[1750708545680,0.833,2318.2,2317.8,4.31436526]
[1750708545854,0.833,2318.2,2317.7,4.31451343]
[1750708546172,0.833,2318.2,2317.8,4.31443255]
[1750708546397,1.90285227,2318.2,2317.7,4.31453585]
[1750708546564,1.90285227,2318.2,2317.8,4.31440622]
[1750708547194,1.90285227,2318.2,2317.6,4.31466471]
[1750708547195,1.90285227,2318.2,2317.6,4.31471886]
[1750708547355,1.90285227,2318.2,2317.7,4.31462154]
[1750708548396,1.90285227,2318.2,2317.8,4.31441166]
[1750708548993,1.90285227,2318.2,2317.3,10.0]
[1750708549159,3.083,2318.2,2317.9,4.31414612]
[1750708549988,2.25,2318.2,2318.1,4.31387774]
[1750708550191,2.25,2318.2,2318.0,4.31396566]
[1750708550379,2.25,2318.2,2318.1,4.31387774]
[1750708551197,10.36,2318.5,2318.3,4.31332747]